bitfinex/quotes_ETHUSD_20251012
["timestamp","ask_amount","ask_price","bid_price","bid_amount"]
[1760240362988,2.62106235,3815.3,3813.6,0.45]
[1760240362989,2.62115438,3815.2,3814.7,0.1304]
[1760240363228,2.75135722,3815.4,3814.7,0.1304]
[1760240363410,2.62109171,3815.3,3814.7,0.1304]
[1760240363721,2.62113992,3815.2,3815.0,0.1304]
[1760240364024,2.62088848,3815.5,3815.0,0.1304]
[1760240364228,0.1304,3815.6,3815.0,0.1304]
[1760240364389,0.001,3815.9,3814.9,2.62128985]
[1760240364585,2.62164865,3815.9,3814.9,2.62129577]
[1760240364792,2.62089163,3815.5,3814.7,2.62143812]
[1760240365123,2.62161707,3815.9,3814.1,0.6419]
[1760240365370,2.62114536,3815.2,3814.2,2.62178176]
[1760240365567,2.62114536,3815.2,3814.1,3.07181895]
[1760240365568,2.62118087,3815.1,3813.9,2.62193457]
[1760240365872,0.001,3815.9,3814.1,0.6336]
[1760240366027,0.001,3815.9,3814.4,3.29226967]
[1760240366234,0.001,3815.9,3814.5,1.30422538]
[1760240366539,0.001,3815.9,3815.5,2.62086249]
[1760240366741,0.001,3815.9,3815.0,2.62123197]
[1760240366949,0.001,3815.9,3815.7,2.62068517]
[1760240367141,0.001,3815.9,3815.7,2.62073734]
[1760240367470,0.41078012,3818.9,3814.9,1.12062538]
[1760240367471,2.61827042,3819.4,3816.7,0.6336]
[1760240367771,12.56088637,3817.7,3816.1,0.6336]
[1760240368065,2.62007733,3816.7,3815.6,2.6207582]
[1760240368264,2.62002322,3816.8,3815.4,2.62093986]
[1760240368450,0.4185,3817.0,3815.0,0.45]
[1760240368662,12.56088637,3817.1,3815.9,2.62058926]
[1760240368854,12.56088637,3817.1,3815.2,0.6336]
[1760240369079,2.61971261,3817.3,3815.4,2.62095717]
[1760240369240,1.29826864,3817.6,3815.8,2.6206214]
[1760240369241,3.21826864,3817.6,3815.8,2.6206214]
[1760240369442,1.29826864,3817.6,3815.8,0.6336]
[1760240369643,0.4185,3817.7,3816.0,2.62049377]
[1760240369830,0.4185,3817.7,3815.8,0.6336]
[1760240369831,2.61945946,3817.6,3815.8,0.6336]
[1760240370053,2.61952112,3817.5,3816.5,2.62019909]
[1760240370250,2.61964115,3817.4,3816.3,2.62028158]
[1760240370450,2.61965727,3817.3,3816.3,2.62028158]
[1760240370766,2.61965727,3817.3,3816.4,2.62026274]
[1760240370968,0.001,3818.3,3816.5,0.6409]
[1760240371170,12.56088637,3818.1,3816.5,0.45]
[1760240371471,12.56088637,3817.4,3815.3,0.67062538]
[1760240371639,12.56088637,3817.4,3815.1,0.6409]
[1760240371640,2.6202731,3816.4,3815.1,0.6409]
[1760240372037,2.61959763,3817.4,3816.0,2.62050597]
[1760240372236,3.23296972,3817.8,3815.9,0.6336]
[1760240372237,0.4324,3817.8,3815.9,0.6336]
[1760240372437,0.001,3817.9,3816.8,2.61999127]
[1760240372662,0.001,3817.9,3816.2,0.6336]
[1760240372870,0.001,3817.9,3816.2,1.30422538]
[1760240373077,0.001,3817.9,3816.7,2.62004213]
[1760240373274,2.6194723,3817.6,3816.2,0.67062538]
[1760240373576,0.43,3817.8,3816.1,2.62046812]
[1760240373777,0.43,3817.8,3815.8,0.6336]
[1760240373778,0.30502339,3817.7,3815.8,0.6336]
[1760240373943,2.61986514,3817.0,3816.0,2.62048713]
[1760240374289,2.61992893,3816.9,3816.0,2.62048713]
[1760240374587,2.62011207,3816.7,3816.6,0.1304]
[1760240374963,2.61977312,3817.2,3816.6,0.1304]
[1760240375550,2.61995311,3816.9,3816.6,0.1304]
[1760240375852,2.62006445,3816.7,3816.6,0.1304]
[1760240376179,0.1304,3817.3,3816.6,0.1304]
[1760240376180,2.61998997,3816.9,3816.6,0.1304]
[1760240376377,2.62006445,3816.7,3816.6,0.1304]
[1760240377348,2.62039514,3816.3,3815.1,2.62115486]
[1760240377759,2.62027576,3816.4,3815.0,1.30422538]
[1760240377964,2.62027576,3816.4,3815.2,2.62108364]
[1760240378196,2.62037104,3816.3,3815.4,2.62089505]
[1760240378492,2.62037104,3816.3,3815.0,1.30422538]
[1760240378493,2.62054188,3816.1,3815.1,2.6211062]
[1760240378696,0.95150036,3816.7,3814.8,1.12062538]
[1760240378697,0.4275,3816.7,3814.8,1.12062538]
[1760240378854,2.62057619,3816.0,3815.0,2.62117646]
[1760240379049,2.62057619,3816.0,3815.1,2.62113218]
[1760240379293,2.62062082,3815.9,3814.8,1.12062538]
[1760240379491,2.62020175,3816.5,3814.8,1.12062538]
[1760240379649,2.62062089,3815.9,3814.8,0.45]
[1760240379855,0.30477017,3816.4,3814.9,2.62123948]
[1760240380055,0.4275,3816.7,3814.9,2.62123948]
[1760240380523,2.62067268,3815.9,3814.9,2.62123948]
[1760240380674,2.62067268,3815.9,3814.8,3.07135479]
[1760240380876,2.62055048,3816.0,3814.9,2.62130068]
[1760240381087,2.62061559,3815.9,3815.0,2.62117681]
[1760240381271,2.62061559,3815.9,3815.1,2.62114585]
[1760240381593,2.6205548,3816.0,3815.2,2.62109019]
[1760240381779,0.4275,3816.7,3815.3,2.62102446]
[1760240382096,1.98834216,3816.7,3815.3,2.62102446]
[1760240382706,2.62056493,3816.0,3815.1,2.62112687]
[1760240383006,2.62086665,3815.6,3814.5,0.67062538]
[1760240383410,2.62075004,3815.8,3814.5,0.67062538]
[1760240383712,2.62075004,3815.8,3814.4,0.4719]
[1760240383713,2.62095417,3815.5,3814.6,2.62150037]
[1760240384005,2.62039182,3816.3,3814.4,2.62164217]
[1760240384006,2.62109159,3815.3,3814.4,2.62164217]
[1760240384207,0.4255,3815.7,3814.3,2.6216979]
[1760240384384,2.62129762,3815.0,3814.1,2.6217957]
[1760240384708,2.62129608,3815.0,3813.8,0.67062538]
[1760240385011,2.62123585,3815.0,3814.2,2.62176876]
[1760240385389,2.62116235,3815.2,3814.3,2.62171027]
[1760240385585,2.62063355,3815.9,3814.0,2.621914]
[1760240385586,0.448,3817.0,3814.4,0.1919]
[1760240385788,0.4456,3816.9,3815.0,2.62117729]
[1760240385979,4.62829128,3816.8,3814.6,0.67062538]
[1760240386178,2.62075184,3815.7,3814.5,0.4719]
[1760240386380,2.62075184,3815.7,3814.8,2.62130961]
[1760240386614,2.62089009,3815.5,3814.3,0.67062538]
[1760240386909,0.4432,3815.4,3813.9,0.67062538]
[1760240387090,2.62136208,3814.9,3813.6,2.62212743]
[1760240387291,2.62150982,3814.6,3813.5,0.1304]
[1760240387514,0.1304,3814.8,3814.2,0.1304]
[1760240387812,2.62117994,3815.1,3814.5,0.1304]
[1760240388033,2.62125665,3815.0,3814.5,0.1304]
[1760240388207,2.62123333,3815.0,3814.5,0.1304]
[1760240388746,0.4432,3815.0,3814.5,0.1304]
[1760240388926,2.62143631,3814.8,3814.5,0.1304]
[1760240389738,0.1304,3815.1,3814.5,0.1304]
[1760240390140,0.4432,3816.1,3814.5,0.1304]
[1760240390338,0.4432,3816.1,3814.5,2.62151039]
[1760240390339,2.62092476,3815.5,3814.5,2.62151039]
[1760240390500,0.4432,3816.1,3813.9,0.67062538]
[1760240390501,2.62076817,3815.7,3813.9,0.67062538]
[1760240390700,2.6208967,3815.5,3814.6,2.62150541]
[1760240391034,0.4432,3816.1,3813.7,0.88969299]
[1760240391035,0.4409,3816.3,3814.3,0.6638]
[1760240391347,2.62111891,3815.2,3814.0,2.62188436]
[1760240391668,0.4387,3815.5,3813.7,1.14252538]
[1760240391797,2.62132533,3814.9,3813.8,2.62205674]
[1760240392003,2.62132533,3814.9,3814.0,2.62190297]
[1760240392203,2.62137259,3814.8,3813.9,2.62198497]
[1760240392500,2.62147966,3814.7,3813.7,2.62212549]
[1760240392704,2.62150684,3814.6,3813.5,0.67062538]
[1760240392899,2.62150684,3814.6,3813.5,3.29287764]
[1760240393134,2.62150684,3814.6,3813.5,0.67062538]
[1760240393400,2.62184718,3814.2,3813.3,2.62438238]
[1760240393747,0.4387,3814.6,3813.3,0.002]
[1760240394050,2.62178586,3814.2,3813.3,0.002]
[1760240394550,2.62171477,3814.3,3813.3,0.002]
[1760240395029,2.6216641,3814.4,3813.6,2.6241695]
[1760240395209,3.06021649,3814.6,3813.6,0.002]
[1760240395442,2.62172814,3814.3,3813.6,0.002]
[1760240395814,0.30604281,3814.3,3813.6,0.002]
[1760240396039,2.62190412,3814.1,3813.6,0.002]
[1760240396737,0.4387,3814.6,3813.6,0.002]
[1760240396738,2.62191967,3814.0,3813.6,0.002]
[1760240396935,2.62164246,3814.5,3813.6,0.002]
[1760240397131,2.62180217,3814.2,3813.6,0.002]
[1760240397517,2.62157556,3814.5,3813.6,0.002]
[1760240397833,0.4387,3814.6,3813.6,0.002]
[1760240398131,2.62162871,3814.5,3813.6,2.62414143]
[1760240398331,3.06020959,3814.6,3813.7,2.62211363]
[1760240398548,0.4387,3814.6,3813.7,2.62211363]
[1760240398846,3.06024794,3814.6,3813.6,2.6241845]
[1760240399006,2.62173241,3814.3,3813.6,0.002]
[1760240399208,2.62163284,3814.5,3813.7,2.62207376]
[1760240399702,2.62167391,3814.4,3813.6,2.6241784]
[1760240400105,0.1304,3814.4,3813.7,2.75251285]
[1760240400311,0.1304,3814.9,3814.2,0.1304]
[1760240400522,2.62137985,3814.8,3814.2,0.1304]
[1760240400725,2.62138801,3814.8,3814.2,0.1304]
[1760240401025,2.62141341,3814.8,3814.2,0.1304]
[1760240401419,2.62145463,3814.7,3814.2,0.1304]
[1760240401626,2.62164429,3814.4,3813.6,0.002]
[1760240401844,0.4387,3814.6,3813.6,0.002]
[1760240402151,0.1304,3814.2,3813.6,0.002]
[1760240402354,2.75219533,3814.2,3813.6,0.002]
[1760240402654,0.1304,3814.2,3813.6,0.002]
[1760240404439,2.7521852,3814.2,3813.6,0.002]
[1760240404644,0.1304,3814.2,3813.6,0.002]
[1760240404822,2.62081983,3815.6,3813.7,2.62212549]
[1760240405023,2.62081983,3815.6,3813.6,0.4718]
[1760240405024,0.4589,3815.5,3813.6,0.002]
[1760240405526,2.62164006,3814.5,3813.6,0.002]
[1760240405731,2.62170293,3814.4,3813.6,0.002]
[1760240405925,2.62156704,3814.6,3813.6,0.002]
[1760240406609,2.62100155,3815.4,3813.6,0.002]
[1760240406610,0.4589,3815.3,3813.6,0.002]
[1760240406818,2.62147628,3814.7,3813.8,2.62199803]
[1760240407045,2.62147628,3814.7,3813.7,2.62211331]
[1760240407351,2.62158864,3814.5,3813.6,2.62412687]
[1760240407557,2.62173659,3814.3,3813.6,0.002]
[1760240407859,2.62173659,3814.3,3813.6,2.62418854]
[1760240408059,2.62173659,3814.3,3813.6,0.002]
[1760240408354,2.62165738,3814.4,3813.6,2.62417557]
[1760240408558,0.4589,3814.9,3813.6,0.002]
[1760240408759,13.01399074,3814.5,3813.6,0.002]
[1760240408964,2.62204374,3813.9,3813.6,0.002]
[1760240409276,2.6219409,3814.0,3813.6,0.002]
[1760240409457,0.4589,3815.2,3813.7,2.62205841]
[1760240409763,2.62158783,3814.5,3813.6,0.002]
[1760240409925,2.62158783,3814.5,3813.7,2.62211316]
[1760240410324,0.4589,3815.1,3813.6,0.002]
[1760240410526,2.62139085,3814.8,3813.7,2.62210978]
[1760240410862,2.62171302,3814.3,3813.6,0.002]
[1760240411063,2.6215676,3814.6,3813.6,0.002]
[1760240411064,0.4589,3814.7,3813.6,0.002]
[1760240411361,0.49999919,3815.0,3813.6,0.002]
[1760240411362,2.83762549,3813.7,3813.6,0.002]
[1760240411732,3.27972549,3813.7,3813.6,0.002]
[1760240413734,3.06422549,3813.7,3813.6,0.002]
[1760240414788,4.98422549,3813.7,3813.6,0.002]
[1760240415985,2.62240054,3813.3,3811.0,0.67502735]
[1760240416147,2.62288202,3812.6,3811.0,2.62596412]
[1760240416347,2.62288202,3812.6,3811.0,0.002]
[1760240416555,2.62295081,3812.5,3812.4,1e-08]
[1760240416963,3.06505081,3812.5,3812.4,1e-08]
[1760240417380,2.62295081,3812.5,3812.4,1e-08]
[1760240417676,3.06505081,3812.5,3812.4,1e-08]
[1760240418257,3.63384167,3812.5,3812.4,1e-08]
[1760240419679,5.55384167,3812.5,3812.4,1e-08]
[1760240421659,3.06505081,3812.5,3812.4,1e-08]
[1760240421869,0.4421,3812.5,3812.4,1e-08]
[1760240422205,0.4421,3813.0,3812.4,1e-08]
[1760240423000,2.62295081,3812.5,3812.4,1e-08]
[1760240423389,3.06505081,3812.5,3812.4,1e-08]
[1760240423795,3.63383806,3812.5,3812.4,1e-08]
[1760240426092,3.06505081,3812.5,3812.4,1e-08]
[1760240427269,0.4421,3812.5,3812.4,1e-08]
[1760240427469,0.4421,3812.9,3812.4,1e-08]
[1760240427865,2.62288112,3812.7,3812.4,1e-08]
[1760240428115,0.26224005,3813.2,3812.4,1e-08]
[1760240428317,0.1304,3812.5,3812.4,1e-08]
[1760240429590,0.5725,3812.5,3812.4,1e-08]
[1760240430013,0.1304,3812.5,3812.4,1e-08]
[1760240431500,2.62212549,3813.7,3812.5,2.6228867]
[1760240431700,2.62234505,3813.4,3812.5,2.6228867]
[1760240431898,0.30642255,3813.7,3812.7,2.62281294]
[1760240432192,0.4421,3813.8,3812.9,2.62266128]
[1760240432419,0.2155,3814.2,3812.5,0.4453]
[1760240432745,0.001,3813.3,3812.6,2.62288202]
[1760240433068,0.001,3813.3,3813.2,2.62246931]
[1760240434927,0.001,3813.3,3813.2,3.06776931]
[1760240436022,0.001,3813.3,3813.2,5.62136931]
[1760240436223,0.001,3813.3,3813.2,6.5110623]
[1760240436557,0.001,3813.3,3813.2,5.62136931]
[1760240436855,0.001,3813.3,3813.2,3.70136931]
[1760240438154,0.001,3813.3,3813.2,4.5910623]
[1760240438366,0.001,3813.3,3813.2,18.63536005]
[1760240440574,0.001,3813.3,3813.2,19.97660648]
[1760240441136,0.001,3813.3,3813.2,18.63536005]
[1760240441458,0.001,3813.3,3813.2,18.76576005]
[1760240441858,0.001,3813.3,3813.2,7.09173116]
[1760240442157,0.001,3813.3,3813.2,5.75176931]
[1760240442363,0.001,3813.3,3813.2,6.64469584]
[1760240442941,0.001,3813.3,3813.2,2.62246931]
[1760240443239,0.001,3813.3,3813.2,3.08586931]
[1760240443562,13.01399074,3816.0,3813.2,1.097]
[1760240443764,13.01399074,3816.0,3812.8,13.90691727]
[1760240443765,0.001,3816.3,3813.5,0.66996553]
[1760240443927,0.001,3816.3,3814.5,0.6336]
[1760240444257,0.001,3816.3,3814.8,2.62132309]
[1760240444456,0.001,3816.3,3814.8,2.6213694]
[1760240444624,0.001,3816.3,3814.9,0.4634]
[1760240444826,0.001,3816.3,3815.8,2.62068242]
[1760240445139,0.001,3816.3,3815.7,2.62074129]
[1760240445461,0.001,3816.3,3815.3,2.62098576]
[1760240445657,2.62053699,3816.1,3814.9,0.4634]
[1760240445861,0.001,3816.3,3814.9,0.4634]
[1760240446229,0.4253,3816.3,3814.9,0.4634]
[1760240446429,0.4253,3816.3,3814.6,2.81239897]
[1760240446430,2.62069077,3815.8,3814.6,2.81239897]
[1760240446631,2.62091544,3815.5,3814.6,0.1909]
[1760240446830,2.62091544,3815.5,3814.4,0.4634]
[1760240447059,0.52421839,3815.8,3813.9,2.62196799]
[1760240447230,2.62110993,3815.2,3814.0,2.62191557]
[1760240447431,0.6501,3815.9,3813.9,0.4634]
[1760240447432,2.6212779,3815.0,3813.9,0.4634]
[1760240447626,0.447,3815.3,3813.9,0.4634]
[1760240447861,2.62109456,3815.2,3813.4,0.4634]
[1760240448087,0.447,3815.3,3813.4,0.4634]
[1760240448265,0.30679055,3815.2,3813.5,2.62226301]
[1760240448462,0.30679055,3815.2,3813.4,0.4634]
[1760240448767,0.30679055,3815.2,3813.7,2.6221191]
[1760240448953,0.30679055,3815.2,3813.5,2.62226301]
[1760240448954,2.6214258,3814.8,3813.8,2.6220173]
[1760240450360,0.448,3815.3,3813.5,2.62220359]
[1760240450561,2.62144518,3814.7,3813.4,3.08567239]
[1760240450960,2.62171799,3814.3,3813.4,0.4634]
[1760240451163,2.62173747,3814.3,3813.4,0.4634]
[1760240451535,2.62173747,3814.3,3813.4,3.08572118]
[1760240451863,2.62173747,3814.3,3812.8,0.4606]
[1760240451864,0.97132464,3814.3,3812.8,0.4606]
[1760240452065,0.97132464,3814.3,3812.4,1e-08]
[1760240452233,0.447,3814.3,3812.4,1e-08]
[1760240452433,2.6224024,3813.3,3812.5,2.62293082]
[1760240452770,2.6224024,3813.3,3812.4,1e-08]
[1760240452771,0.4446,3813.3,3812.4,1e-08]
[1760240452969,0.1304,3813.2,3812.6,0.1304]
[1760240453371,2.62271811,3812.9,3812.6,0.1304]
[1760240453543,0.1304,3813.2,3812.6,0.1304]
[1760240453868,2.62261931,3813.0,3812.6,0.1304]
[1760240454047,2.62267937,3812.9,3812.6,0.1304]
[1760240454232,0.4446,3813.7,3812.6,0.1304]
[1760240454436,0.4446,3813.7,3812.4,1e-08]
[1760240454437,2.62240109,3813.3,3812.5,2.62288717]
[1760240454850,2.62240109,3813.3,3812.4,2.62301146]
[1760240455166,2.62240109,3813.3,3812.5,2.62293783]
[1760240455366,2.6221489,3813.7,3812.5,2.62295081]
[1760240455543,2.62223848,3813.6,3812.7,2.62275411]
[1760240455749,0.26222385,3813.6,3812.4,1e-08]
[1760240455946,2.62233177,3813.4,3812.4,1e-08]
[1760240456158,2.62282107,3812.7,3812.4,1e-08]
[1760240456357,2.62295081,3812.5,3812.4,1e-08]
[1760240457040,3.06525081,3812.5,3812.4,1e-08]
[1760240460979,3.63405921,3812.5,3812.4,1e-08]
[1760240461188,18.56804995,3812.5,3812.4,1e-08]
[1760240462106,2.62350132,3811.7,3811.6,1e-08]
[1760240462306,2.62391435,3811.1,3811.0,0.002]
[1760240462605,2.62418978,3810.7,3810.6,0.002]
[1760240462899,4.54446526,3810.3,3810.2,0.002]
[1760240463137,17.558456,3810.3,3810.2,0.002]
[1760240463398,17.996256,3810.3,3810.2,0.002]
[1760240467004,2.62539531,3809.0,3808.7,0.1312]
[1760240467298,0.4378,3810.2,3808.1,0.6535]
[1760240467499,0.4378,3810.2,3809.4,0.002]
[1760240467500,2.6250164,3809.5,3809.4,0.002]
[1760240467904,4.9804164,3809.5,3809.4,0.002]
[1760240473942,1.92,3809.5,3809.4,0.002]
[1760240474233,2.3554,3809.5,3809.4,0.002]
[1760240474395,0.4354,3809.5,3809.4,0.002]
[1760240475623,0.4646,3810.2,3809.4,0.002]
[1760240475799,1.92,3809.9,3809.4,0.002]
[1760240476120,2.62473264,3810.0,3809.4,0.002]
[1760240476321,0.6238,3810.5,3809.5,2.62495453]
[1760240476525,0.6238,3810.5,3809.4,0.002]
[1760240476526,2.62445456,3810.4,3809.6,2.62494513]
[1760240476729,3.2481327,3810.5,3809.5,2.6250164]
[1760240476930,3.2481327,3810.5,3809.4,0.002]
[1760240476931,0.4646,3810.4,3809.4,0.002]
[1760240477107,2.62466964,3810.1,3809.4,0.002]
[1760240477424,2.75586964,3810.1,3809.4,0.1332]
[1760240477726,0.1312,3810.1,3809.4,2.75827827]
[1760240477925,0.1312,3810.1,3809.5,2.62500103]
[1760240478112,2.75581533,3810.1,3809.4,0.1332]
[1760240478750,0.4646,3810.0,3809.4,0.1332]
[1760240478951,0.4646,3810.0,3809.4,0.002]
[1760240479155,2.62500773,3809.6,3809.4,0.002]
[1760240479529,3.08960773,3809.6,3809.4,0.002]
[1760240479868,3.0896164,3809.5,3809.4,0.002]
[1760240480977,5.59418722,3809.5,3809.4,0.002]
[1760240481951,18.21569817,3809.5,3809.4,0.002]
[1760240485169,2.62529206,3809.1,3809.0,1e-08]
[1760240485473,5.51940573,3809.1,3809.0,1e-08]
[1760240485629,5.98400573,3809.1,3809.0,1e-08]
[1760240485852,6.8449263,3809.1,3809.0,1e-08]
[1760240486684,3.25916777,3808.7,3808.6,0.002]
[1760240486886,17.80067872,3808.7,3805.5,0.1909]
[1760240487191,2.6267257,3807.1,3805.8,2.62756219]
[1760240487351,0.6697,3807.3,3805.5,0.1909]
[1760240487558,2.62666087,3807.2,3806.2,2.62729148]
[1760240487773,2.62666087,3807.2,3806.0,2.62742896]
[1760240487978,2.62666087,3807.2,3805.5,2.8186255]
[1760240487979,0.6697,3807.3,3806.4,2.62714867]
[1760240488164,3.29623407,3807.3,3806.4,2.62714867]
[1760240488370,0.6697,3807.3,3805.5,0.1909]
[1760240488556,2.62668666,3807.1,3805.8,0.4335]
[1760240488893,2.62661353,3807.2,3806.4,2.62715069]
[1760240489091,0.6697,3807.3,3806.5,2.62707604]
[1760240489291,3.2962628,3807.3,3806.5,2.62707604]
[1760240489490,2.62662046,3807.2,3806.3,2.62717246]
[1760240489655,2.62662046,3807.2,3806.4,2.62715237]
[1760240490284,2.6266733,3807.1,3806.3,2.62721065]
[1760240490587,0.464,3807.0,3805.9,2.62748275]
[1760240490749,2.62697154,3806.7,3805.6,2.62770653]
[1760240490955,2.62697154,3806.7,3805.8,2.62756515]
[1760240491150,2.62697154,3806.7,3805.1,0.66996553]
[1760240491151,0.464,3806.6,3805.1,0.66996553]
[1760240491398,2.62741623,3806.1,3804.9,2.62814477]
[1760240491556,0.464,3806.2,3805.4,2.62778189]
[1760240491976,0.464,3806.2,3804.7,3.06178944]
[1760240492185,0.464,3806.7,3804.8,3.06172859]
[1760240492485,0.464,3806.7,3806.1,2.62729366]
[1760240492656,0.6697,3807.3,3805.5,0.4335]
[1760240492988,0.6697,3807.3,3805.6,2.62770653]
[1760240493153,0.6697,3807.3,3806.6,2.62696606]
[1760240493365,0.6697,3807.3,3806.0,2.62739638]
[1760240493565,0.6697,3807.3,3806.7,2.62693424]
[1760240493773,0.464,3807.3,3806.0,0.4335]
[1760240493972,0.464,3807.3,3807.2,2.62660222]
[1760240494188,0.4615,3807.8,3807.7,2.62625732]
[1760240494389,0.4564,3808.7,3808.1,2.6259544]
[1760240494711,0.4564,3808.7,3807.1,0.4335]
[1760240494862,0.4564,3808.7,3807.6,2.62625899]
[1760240495063,0.4564,3809.2,3807.5,0.4335]
[1760240495291,0.1312,3808.7,3808.5,2.62564353]
[1760240495800,0.1312,3808.7,3808.6,2.62563671]
[1760240497801,0.1312,3808.7,3808.4,2.62575991]
[1760240497802,0.4564,3809.2,3808.8,2.62544599]
[1760240498000,0.1312,3809.0,3808.8,2.62544599]
[1760240498368,0.1312,3809.0,3808.5,2.62568507]
[1760240498892,0.5876,3809.0,3808.5,2.62568507]
[1760240499092,0.5876,3809.0,3808.6,2.62563671]
[1760240499402,0.5876,3809.0,3808.7,2.62553786]
[1760240499800,0.1312,3809.0,3808.8,2.62549338]
[1760240500104,0.4564,3808.9,3808.1,2.6259277]
[1760240500402,2.6248026,3809.9,3806.6,0.66996553]
[1760240500403,4.54694722,3806.7,3806.6,0.66996553]
[1760240500604,2.3622,3806.7,3805.3,0.66996553]
[1760240500850,2.62715426,3806.4,3804.3,0.4335]
[1760240500993,0.4422,3806.3,3804.4,2.62853538]
[1760240501198,2.3622,3806.3,3804.5,2.62844311]
[1760240501398,1.92,3806.1,3804.3,0.4335]
[1760240501620,1.92,3805.9,3803.8,0.4335]
[1760240501832,2.62819446,3804.9,3803.8,0.4335]
[1760240502141,2.62825704,3804.9,3803.8,2.62888349]
[1760240502295,3.07025996,3805.1,3803.8,2.62888349]
[1760240502700,0.4422,3805.1,3803.4,0.4335]
[1760240503000,0.4422,3805.1,3802.7,2.62966786]
[1760240503001,0.4422,3805.1,3802.7,0.4335]
[1760240503199,2.62853538,3804.4,3804.3,0.002]
[1760240503408,2.62853538,3804.4,3802.1,0.4335]
[1760240503409,2.62930778,3803.3,3802.1,3.06360865]
[1760240503607,0.3089,3803.7,3802.1,0.4335]
[1760240503932,0.3089,3803.7,3803.5,0.002]
[1760240504104,0.3089,3803.6,3803.5,0.002]
[1760240504300,0.2326,3803.8,3803.5,0.002]
[1760240504724,0.3089,3803.7,3803.5,0.002]
[1760240505236,1.92,3804.6,3803.5,0.002]
[1760240505237,0.2326,3804.5,3803.5,0.002]
[1760240505531,1.92,3804.1,3803.5,0.002]
[1760240505735,0.3089,3804.2,3803.5,0.002]
[1760240506042,2.62881315,3804.0,3803.5,0.002]
[1760240506247,0.2326,3804.5,3803.5,0.002]
[1760240506531,0.3089,3804.4,3803.5,0.002]
[1760240506741,2.2289,3804.4,3803.5,0.002]
[1760240506947,0.2326,3804.9,3803.5,0.002]
[1760240507112,1.92,3804.7,3803.6,2.62908823]
[1760240507317,1.92,3804.7,3803.5,0.002]
[1760240507318,0.5415,3804.9,3803.5,0.002]
[1760240507497,0.3089,3804.9,3803.5,0.4443]
[1760240507697,0.3089,3805.5,3803.6,0.6336]
[1760240508006,0.3089,3805.5,3804.5,2.62846499]
[1760240508210,0.3089,3805.5,3804.1,0.1929]
[1760240508428,0.3089,3806.2,3804.2,0.6336]
[1760240508628,2.93622147,3806.2,3805.1,2.62803618]
[1760240508827,1.92,3806.1,3805.1,2.62803618]
[1760240509022,2.93622147,3806.2,3805.1,2.62803618]
[1760240509225,2.62749964,3805.9,3804.6,2.62833832]
[1760240509421,0.3089,3805.8,3803.6,2.62908823]
[1760240509622,0.3089,3805.7,3804.0,2.62876212]
[1760240509817,4.54762915,3805.8,3803.5,0.002]
[1760240509818,0.3089,3805.6,3803.5,0.002]
[1760240510355,0.1312,3804.8,3804.1,0.1312]
[1760240510539,0.3089,3805.2,3804.9,0.1312]
[1760240510725,0.3089,3805.1,3804.6,0.1312]
[1760240510926,0.61570782,3805.1,3803.5,0.002]
[1760240511240,0.1312,3804.6,3804.0,0.1312]
[1760240511417,0.61570782,3805.1,3803.5,0.002]
[1760240511624,0.3089,3805.6,3804.7,2.62826748]
[1760240511940,2.62759457,3805.8,3803.5,0.002]
[1760240511941,0.4401,3805.8,3805.1,0.1312]
[1760240512327,0.3089,3805.8,3805.4,2.62781977]
[1760240512526,0.3089,3805.8,3805.5,2.62776478]
[1760240512943,0.3082,3806.4,3804.4,3.26213538]
[1760240513157,0.1312,3806.3,3805.6,0.1312]
[1760240513328,0.3082,3806.4,3805.9,0.1312]
[1760240513525,0.3082,3806.4,3806.0,2.62741626]
[1760240513752,0.3082,3806.4,3805.9,0.1312]
[1760240513924,0.3082,3806.3,3805.9,0.1312]
[1760240515555,2.62744999,3806.0,3805.4,0.1312]
[1760240515875,2.62764263,3805.7,3805.4,0.1312]
[1760240516247,2.62788563,3805.4,3803.7,2.62900747]
[1760240516452,0.461,3805.6,3805.1,0.1312]
[1760240516453,2.62791999,3805.3,3805.1,0.1312]
[1760240516666,0.461,3805.2,3805.1,0.1312]
[1760240517177,0.461,3805.2,3804.3,2.62854229]
[1760240517384,0.461,3805.2,3804.9,0.1312]
[1760240517567,0.77940001,3805.2,3804.9,0.1312]
[1760240517885,0.461,3805.1,3804.9,0.1312]
[1760240518082,2.62796925,3805.3,3804.9,0.1312]
[1760240518083,0.461,3805.0,3804.9,0.1312]
[1760240519669,3.08912089,3805.0,3804.9,0.1312]
[1760240520070,0.461,3805.0,3804.9,0.1312]
[1760240520480,3.08912089,3805.0,3804.3,0.002]
[1760240520685,2.62826496,3804.8,3804.4,0.1312]
[1760240520988,1.92,3804.8,3804.4,0.1312]
[1760240521170,4.54846628,3804.5,3804.3,0.002]
[1760240521376,4.54853538,3804.4,3804.3,0.002]
[1760240521558,5.00953538,3804.4,3804.3,0.002]
[1760240521760,5.77333555,3804.4,3804.3,0.002]
[1760240525110,5.77333555,3804.4,3803.0,0.1312]
[1760240525111,3.77840017,3804.4,3803.0,0.1312]
[1760240525275,3.77840017,3804.4,3802.6,0.1312]
[1760240525276,4.78238823,3803.6,3802.6,0.1312]
[1760240525663,5.24268823,3803.6,3802.6,0.1312]
[1760240526274,2.6136,3803.6,3802.6,0.1312]
[1760240526476,5.24268823,3803.6,3802.8,2.76083337]
[1760240526796,5.24268823,3803.6,3802.8,0.1312]
[1760240527601,6.02985438,3803.6,3802.8,0.1312]
[1760240527900,6.02985438,3803.6,3802.2,2.63005312]
[1760240528066,6.02985438,3803.6,3801.9,2.63024431]
[1760240528067,6.02985438,3803.6,3801.8,0.4398]
[1760240528271,6.02985438,3803.6,3802.6,2.62976614]
[1760240528600,2.6136,3803.6,3803.0,2.6294345]
[1760240528767,2.3803,3803.6,3802.3,2.82187748]
[1760240528963,2.3803,3803.6,3802.1,0.4398]
[1760240529167,2.3803,3803.6,3801.9,0.6336]
[1760240529168,5.00938823,3803.6,3802.5,2.62979247]
[1760240529407,2.3803,3803.6,3801.9,3.26380321]
[1760240529609,2.3803,3803.6,3803.1,2.62943153]